fUSD/lending_fUSD_20260217
["ID","MTS","AMOUNT","RATE_DAILY","PERIOD"]
[405811230,1771331439235,-2791.21,0.00012779,2]
[405811231,1771331439245,-2791.21,0.00012895,2]
[405811232,1771331439255,-70181.97252511,0.000129,2]
[405811233,1771331439264,-2791.21,0.00013012,2]
[405811234,1771331439274,-151.0,0.00013027,4]
[405811235,1771331439284,-5921.31280523,0.00013075,2]
[405811236,1771331439293,-1783.5563983,0.00013075,2]
[405811237,1771331439302,-2791.21,0.00013129,2]
[405811238,1771331439312,-165.3,0.00013133,2]
[405811239,1771331439321,-2791.21,0.00013245,2]
[405811240,1771331439331,-6145.04167097,0.00013247,2]
[405811241,1771331439341,-2791.21,0.00013362,2]
[405811242,1771331439351,-2791.21,0.00013478,2]
[405811243,1771331439361,-500.0,0.00013488,2]
[405811244,1771331439371,-2791.21,0.00013595,2]
[405811245,1771331439380,-500.0,0.00013698,2]
[405811246,1771331439390,-500.0,0.00013698,2]
[405811247,1771331439400,-500.0,0.00013698,2]
[405811248,1771331439412,-500.0,0.00013698,2]
[405811249,1771331439421,-626.57508189,0.00013698,2]
[405811250,1771331439431,-500.0,0.00013698,2]
[405811251,1771331439441,-500.0,0.00013698,2]
[405811252,1771331439452,-298.04694078,0.00013698,2]
[405811253,1771331439464,-500.0,0.00013698,2]
[405811254,1771331439473,-500.0,0.00013698,2]
[405811255,1771331439483,-508.20125622,0.00013698,2]
[405811256,1771331439493,-500.0,0.00013698,2]
[405811257,1771331439504,-500.0,0.00013698,2]
[405811258,1771331439514,-500.0,0.00013698,2]
[405811259,1771331439524,-522.2154278,0.00013698,2]
[405811260,1771331439536,-503.77565291,0.00013698,2]
[405811261,1771331439546,-500.0,0.00013698,2]
[405811262,1771331439556,-500.0,0.00013698,2]
[405811263,1771331439566,-500.0,0.00013698,2]
[405811264,1771331439576,-551.5931465,0.00013698,2]
[405811265,1771331439586,-500.0,0.00013698,2]
[405811266,1771331439595,-500.0,0.00013698,2]
[405811267,1771331439605,-500.0,0.00013698,2]
[405811268,1771331439614,-500.0,0.00013698,2]
[405811269,1771331439623,-500.0,0.00013698,2]
[405811270,1771331439633,-616.63168694,0.00013698,2]
[405811271,1771331439643,-500.0,0.00013698,2]
[405811272,1771331439652,-500.0,0.00013698,2]
[405811273,1771331439661,-500.0,0.00013698,2]
[405811274,1771331439671,-500.0,0.00013698,2]
[405811275,1771331439680,-500.0,0.00013698,2]
[405811276,1771331439690,-500.0,0.00013698,2]
[405811277,1771331439699,-500.0,0.00013698,2]
[405811278,1771331439709,-500.0,0.00013698,2]
[405811279,1771331439719,-391.46615766,0.00013698,2]
[405811280,1771331439729,-500.0,0.00013698,2]
[405811281,1771331439739,-500.0,0.00013698,2]
[405811282,1771331439749,-500.0,0.00013698,2]
[405811283,1771331439758,-500.0,0.00013698,2]
[405811284,1771331439768,-500.0,0.00013698,2]
[405811285,1771331439777,-500.0,0.00013698,2]
[405811286,1771331439787,-500.0,0.00013698,2]
[405811287,1771331439796,-500.0,0.00013698,2]
[405811288,1771331439806,-500.0,0.00013698,2]
[405811289,1771331439815,-576.0663384,0.00013698,2]
[405811290,1771331439824,-500.0,0.00013698,2]
[405811291,1771331439834,-500.0,0.00013698,2]
[405811292,1771331439844,-500.0,0.00013698,2]
[405811293,1771331439853,-500.0,0.00013698,2]
[405811294,1771331439862,-500.0,0.00013698,2]
[405811295,1771331439872,-500.0,0.00013698,2]
[405811296,1771331439881,-500.0,0.00013698,2]
[405811297,1771331439890,-500.0,0.00013698,2]
[405811298,1771331439900,-500.0,0.00013698,2]
[405811299,1771331439910,-500.0,0.00013698,2]
[405811300,1771331439919,-500.0,0.00013698,2]
[405811301,1771331439929,-500.0,0.00013698,2]
[405811302,1771331439938,-500.0,0.00013698,2]
[405811303,1771331439948,-500.0,0.00013698,2]
[405811304,1771331439958,-200.0,0.00013699,2]
[405811305,1771331439968,-704.93,0.00013699,2]
[405811306,1771331439977,-2791.21,0.00013711,2]
[405811307,1771331439987,-2791.21,0.00013828,2]
[405811308,1771331439996,-2791.21,0.00013944,2]
[405811309,1771331440006,-551.38570251,0.00014,2]
[405811310,1771331440015,-2791.21,0.00014061,2]
[405811311,1771331440025,-2791.21,0.00014177,2]
[405811312,1771331440034,-150.0,0.00014228,2]
[405811313,1771331440044,-5921.31280523,0.00014281,2]
[405811314,1771331440053,-1783.5563983,0.00014281,2]
[405811315,1771331440063,-2791.21,0.00014294,2]
[405811316,1771331440072,-200.0,0.00014302,2]
[405811317,1771331440081,-704.93,0.00014384,2]
[405811318,1771331440091,-7658.84032483,0.0001439,2]
[405811319,1771331440100,-2791.21,0.0001441,2]
[405811320,1771331440110,-2791.21,0.00014527,2]
[405811321,1771331440120,-173.0767049,0.00014576,2]
[405811322,1771331440129,-173.57638878,0.00014587,2]
[405811323,1771331440139,-160.0,0.00014591,2]
[405811324,1771331440148,-151.0,0.00014634,2]
[405811325,1771331440158,-151.0,0.00014634,2]
[405811326,1771331440168,-2791.21,0.00014643,2]
[405811327,1771331440178,-2791.21,0.0001476,2]
[405811328,1771331440187,-6145.04167097,0.00014798,2]
[405811329,1771331440197,-250.0,0.00015,2]
[405811330,1771331440207,-2055.50045313,0.00015,2]
[405811331,1771331440216,-8002.23365242,0.00015,2]
[405811332,1771331440226,-151.76907395,0.00015,2]
[405811333,1771331440235,-704.93,0.00015068,2]
[405811334,1771331440244,-1517.64,0.000153,2]
[405811335,1771331440253,-2823.55,0.0001531,2]
[405811336,1771331440262,-509.61038486,0.000154,2]
[405811337,1771331440272,-1561.433547,0.00015474,7]
[405811338,1771331440280,-5921.31280523,0.00015487,2]
[405811339,1771331440290,-1783.5563983,0.00015487,2]
[405811340,1771331440299,-484.11558281,0.00015649,2]
[405811341,1771331440308,-500.0,0.00015724,2]
[405811342,1771331440318,-500.0,0.00015724,2]
[405811343,1771331440327,-500.0,0.00015724,2]
[405811344,1771331440336,-500.0,0.00015724,2]
[405811345,1771331440346,-500.0,0.00015724,2]
[405811346,1771331440356,-500.0,0.00015724,2]
[405811347,1771331440365,-500.0,0.00015724,2]
[405811348,1771331440374,-500.0,0.00015724,2]
[405811349,1771331440383,-384.0,0.00015724,2]
[405811350,1771331440392,-704.93,0.00015753,2]
[405811351,1771331440401,-2245.73805852,0.00015807,2]
[405811352,1771331440411,-5000.0,0.0001596,2]
[405811353,1771331440420,-418.83903334,0.00016,2]
[405811354,1771331440430,-152.85835457,0.00016,2]
[405811355,1771331440439,-151.0,0.00016031,5]
[405811356,1771331440450,-484.11558281,0.0001604,2]
[405811357,1771331440461,-1062.34374872,0.00016199,5]
[405811358,1771331440470,-219901.3623087,0.000162,5]
[405811359,1771331440480,-1000.0,0.00016202,7]
[405811360,1771331440491,-200.0,0.0001634,2]
[405811361,1771331440501,-6145.04167097,0.00016349,2]
[405811362,1771331440510,-2045.7,0.00016438,2]
[405811363,1771331440520,-704.93,0.00016438,2]
[405811364,1771331440534,-500.0,0.00016546,2]
[405811365,1771331440543,-500.0,0.00016546,2]
[405811366,1771331440553,-500.0,0.00016546,2]
[405811367,1771331440562,-500.0,0.00016546,2]
[405811368,1771331440572,-630.0,0.00016546,2]
[405811369,1771331440581,-5921.31280523,0.00016694,2]
[405811370,1771331440591,-1783.5563983,0.00016694,2]
[405811371,1771331440600,-159.42,0.00016712,2]
[405811372,1771331440609,-250.35514413,0.00016869,2]
[405811373,1771331440618,-250.0,0.00016869,2]
[405811374,1771331440628,-250.0,0.00016869,2]
[405811375,1771331440637,-250.0,0.00016869,2]
[405811376,1771331440646,-250.0,0.00016869,2]
[405811377,1771331440656,-250.0,0.00016869,2]
[405811378,1771331440665,-250.0,0.00016869,2]
[405811379,1771331440674,-254.40792854,0.00016869,2]
[405811380,1771331440684,-200.0,0.00016869,2]
[405811381,1771331440693,-578.20924308,0.00016869,2]
[405811382,1771331440702,-168.19115038,0.00016869,2]
[405811383,1771331440712,-250.0,0.00016869,2]
[405811384,1771331440721,-501.4949202,0.00016869,2]
[405811385,1771331440730,-250.0,0.00016869,2]
[405811386,1771331440740,-250.0,0.00016869,2]
[405811387,1771331440749,-693.3919763,0.00016869,2]
[405811388,1771331440759,-253.03375294,0.00016869,2]
[405811389,1771331440768,-721.12765535,0.00016869,2]
[405811390,1771331440777,-719.04747942,0.00016924,2]
[405811391,1771331440786,-745.65223616,0.00016979,2]
[405811392,1771331440795,-300.0,0.00017,2]
[405811393,1771331440804,-722480.46228801,0.00017,2]
[405811394,1771331440814,-773.2413689,0.00017034,2]
[405811395,1771331440823,-801.85129955,0.00017089,2]
[405811396,1771331440832,-831.51979763,0.00017144,2]
[405811397,1771331440841,-862.28603014,0.00017199,2]
[405811398,1771331440851,-894.19061326,0.00017254,2]
[405811399,1771331440861,-927.27566595,0.00017309,2]
[405811400,1771331440870,-961.58486559,0.00017364,2]
[405811401,1771331440879,-500.0,0.00017368,2]
[405811402,1771331440888,-500.0,0.00017368,2]
[405811403,1771331440897,-500.0,0.00017368,2]
[405811404,1771331440906,-253.0,0.00017368,2]
[405811405,1771331440915,-2555.4951848,0.000174,5]
[405811406,1771331440924,-200.0,0.00017417,2]
[405811407,1771331440934,-997.16350561,0.00017419,2]
[405811408,1771331440943,-473.31058807,0.00017667,2]
[405811409,1771331440953,-784.32813885,0.000177,2]
[405811410,1771331440963,-403.0,0.000177,5]
[405811411,1771331440972,-500.0,0.00017808,2]
[405811412,1771331440982,-378.71452673,0.00017808,2]
[405811413,1771331440991,-500.0,0.00017808,2]
[405811414,1771331441000,-444.64,0.00017808,2]
[405811415,1771331441009,-250.0,0.00017808,20]
[405811416,1771331441018,-250.0,0.00017808,20]
[405811417,1771331441027,-250.0,0.00017808,20]
[405811418,1771331441036,-250.0,0.00017808,20]
[405811419,1771331441046,-250.0,0.00017808,20]
[405811420,1771331441055,-250.0,0.00017808,20]
[405811421,1771331441064,-250.0,0.00017808,20]
[405811422,1771331441269,-250.0,0.00017808,20]
[405811423,1771331441311,-250.0,0.00017808,20]
[405811424,1771331441320,-250.0,0.00017808,20]
[405811425,1771331441330,-250.0,0.00017808,20]
[405811426,1771331441339,-250.0,0.00017808,20]
[405811427,1771331441348,-250.0,0.00017808,20]
[405811428,1771331441358,-250.0,0.00017808,20]
[405811429,1771331441367,-250.0,0.00017808,20]
[405811430,1771331441376,-250.0,0.00017808,20]
[405811431,1771331441386,-250.0,0.00017808,20]
[405811432,1771331441396,-250.0,0.00017808,20]
[405811433,1771331441405,-250.0,0.00017808,20]
[405811434,1771331441414,-250.0,0.00017808,20]
[405811435,1771331441423,-250.0,0.00017808,20]
[405811436,1771331441433,-211.316222,0.00017808,20]
[405811437,1771331441442,-1088.37215301,0.00017819,2]
[405811438,1771331441453,-1004.12697823,0.0001786,2]
[405811439,1771331441463,-3176.59624034,0.00017891,2]
[405811440,1771331441473,-6145.04167097,0.000179,2]
[405811441,1771331441483,-5921.31280523,0.000179,2]
[405811442,1771331441492,-8326.4100907,0.000179,2]
[405811443,1771331441503,-10040.43634857,0.000179,2]
[405811444,1771331441512,-1783.5563983,0.000179,2]
[405811445,1771331441524,-500.0,0.00017918,2]
[405811446,1771331441533,-500.0,0.00017918,2]
[405811447,1771331441543,-500.0,0.00017918,2]
[405811448,1771331441553,-500.0,0.00017918,2]
[405811449,1771331441563,-451.0,0.00017918,2]
[405811450,1771331441572,-290.99134182,0.00017973,2]
[405811451,1771331441581,-500.0,0.00017973,2]
[405811452,1771331441591,-508.22453373,0.00017973,2]
[405811453,1771331441600,-213.36943428,0.00017973,2]
[405811454,1771331441610,-501.35605949,0.00017973,2]
[405811455,1771331441620,-194.4116551,0.00017973,2]
[405811456,1771331441629,-502.80271569,0.00017973,2]
[405811457,1771331441639,-502.37992604,0.00017973,2]
[405811458,1771331441649,-500.0,0.00017973,2]
[405811459,1771331441659,-500.99019732,0.00017973,2]
[405811460,1771331441669,-500.67013055,0.00017973,2]
[405811461,1771331441678,-310.16973746,0.00017973,2]
[405811462,1771331441687,-588.14229004,0.00017973,2]
[405811463,1771331441696,-500.0,0.00017973,2]
[405811464,1771331441705,-500.0,0.00017973,2]
[405811465,1771331441715,-500.0,0.00017973,2]
[405811466,1771331441724,-501.06962982,0.00017973,2]
[405811467,1771331441734,-500.0,0.00017973,2]
[405811468,1771331441743,-500.60659592,0.00017973,2]
[405811469,1771331441753,-163.14629325,0.00017973,2]
[405811470,1771331441762,-168.45138887,0.00017973,2]
[405811471,1771331441771,-500.0,0.00017973,2]
[405811472,1771331441780,-500.0,0.00017973,2]
[405811473,1771331441790,-501.59728131,0.00017973,2]
[405811474,1771331441799,-665.75189293,0.0001799,2]
[405811475,1771331441808,-666.0,0.00017999,2]
[405811476,1771331441819,-300.0,0.00017999,2]
[405811477,1771331441828,-1062.34374872,0.00017999,5]
[405811478,1771331441837,-1062.34374877,0.00017999,5]
[405811479,1771331441847,-1062.34374872,0.00017999,5]
[405811480,1771331441855,-300.0,0.00017999,2]
[405811481,1771331441865,-666.0,0.00017999,2]
[405811482,1771331441874,-28610.11146738,0.00017999,2]
[405811483,1771331441884,-150.0,0.00018,2]
[405811484,1771331441893,-3080.85541333,0.00018,2]
[405811485,1771331441902,-772.26,0.00018,7]
[405811486,1771331441911,-150.0,0.00018,2]
[405811487,1771331441920,-2035.41018249,0.00018,2]
[405811488,1771331441930,-10294360.12157022,0.00018,2]
[405811489,1771331441946,-6815.59856,0.00018,2]
[405811490,1771331442022,-209.5999999,0.00018,2]
[405811491,1771331442679,-336.20053682,7.143e-05,2]
[405811493,1771331442717,-1144.058855,8.219e-05,2]
[405811494,1771331442727,-1268.316212,8.219e-05,2]
[405811495,1771331442736,-8864.476328,9.284e-05,2]
[405811496,1771331442745,-8470485.33050604,0.00018,2]
[405811499,1771331442790,-40.35868058,0.00018,2]
[405811509,1771331539672,172.0,5.2e-07,2]
[405811510,1771331583014,150.0,7.017e-05,2]
[405811511,1771331593260,3260.85042195,6.9e-05,3]
[405811512,1771331593307,4660.73311184,6.9e-05,3]
[405811513,1771331593361,5127.36067513,6.9e-05,3]
[405811514,1771331593427,5186.38190416,6.9e-05,3]
[405811515,1771331593454,407.60633426,6.9e-05,3]
[405811516,1771331595380,3176.59624034,6.918e-05,2]
[405811517,1771331602011,1062.34374873,7.017e-05,2]
[405811518,1771331602063,1062.34374873,7.017e-05,2]
[405811519,1771331602117,1062.34374873,7.017e-05,2]
[405811520,1771331631925,341.74,0.00012,10]
[405811521,1771331663789,500.0,7.017e-05,2]
[405811522,1771331666376,500.0,7.017e-05,2]
[405811523,1771331670090,304.32,7e-05,2]
[405811524,1771331686230,500.0,7.017e-05,2]
[405811525,1771331688317,500.0,7.017e-05,2]
[405811526,1771331688354,500.0,7.017e-05,2]
[405811527,1771331688389,500.0,7.017e-05,2]
[405811528,1771331688422,182.06251347,7.017e-05,2]
[405811529,1771331688446,317.93748653,7.017e-05,2]
[405811530,1771331688479,500.0,7.017e-05,2]
[405811531,1771331688516,500.0,7.017e-05,2]
[405811532,1771331688562,500.0,7.017e-05,2]
[405811533,1771331688598,500.0,7.017e-05,2]
[405811534,1771331688642,500.0,7.017e-05,2]
[405811535,1771331688676,500.0,7.017e-05,2]
[405811536,1771331688721,500.0,7.017e-05,2]
[405811537,1771331689602,500.0,7.017e-05,2]
[405811538,1771331689652,500.0,7.017e-05,2]
[405811539,1771331689712,500.0,7.017e-05,2]
[405811540,1771331689755,500.0,7.017e-05,2]
[405811541,1771331689803,500.0,7.017e-05,2]
[405811542,1771331689846,500.0,7.017e-05,2]
[405811543,1771331689889,500.0,7.017e-05,2]
[405811544,1771331689942,500.0,7.017e-05,2]
[405811545,1771331689989,500.0,7.017e-05,2]
[405811546,1771331690038,500.0,7.017e-05,2]
[405811547,1771331690080,500.0,7.017e-05,2]
[405811548,1771331690122,500.0,7.017e-05,2]
[405811549,1771331690163,182.07251347,7.017e-05,2]
[405811550,1771331690192,317.92748653,7.017e-05,2]
[405811551,1771331690237,548.14377024,7.017e-05,2]
[405811552,1771331690280,500.0,7.017e-05,2]
[405811553,1771331690334,500.0,7.017e-05,2]
[405811554,1771331690374,500.0,7.017e-05,2]
[405811555,1771331701735,300.0,7.017e-05,2]
[405811556,1771331701798,1200.0,7.017e-05,2]
[405811557,1771331709275,500.0,7.017e-05,2]
[405811558,1771331709315,500.0,7.017e-05,2]
[405811559,1771331763577,150.0,7.017e-05,2]
[405811560,1771331775168,500.68041255,6.9e-05,3]
[405811561,1771331775204,658.4865982,6.9e-05,3]
[405811562,1771331775246,711.08866009,6.9e-05,3]
[405811563,1771331775280,763.69072197,6.9e-05,3]
[405811564,1771331821217,300.0,7.017e-05,2]
[405811565,1771331884178,4683.93874323,6.918e-05,2]
[405811566,1771331884202,10000.01,6.918e-05,2]
[405811567,1771331884224,10000.01,6.918e-05,2]
[405811568,1771331884246,10000.01,6.918e-05,2]
[405811569,1771331884269,10000.01,6.918e-05,2]
[405811570,1771331884291,10000.01,6.918e-05,2]
[405811571,1771331884313,10000.01,6.918e-05,2]
[405811572,1771331884335,10000.01,6.918e-05,2]
[405811573,1771331884356,10000.01,6.918e-05,2]
[405811574,1771331884377,10000.01,6.918e-05,2]
[405811575,1771331884404,100000.0,6.918e-05,2]
[405811576,1771331891145,-5258.48547183,6.918e-05,2]
[405811577,1771331891252,-10000.01,6.918e-05,2]
[405811578,1771331891380,-10000.01,6.918e-05,2]
[405811579,1771331891496,-10000.01,6.918e-05,2]
[405811580,1771331891611,-10000.01,6.918e-05,2]
[405811581,1771331891728,-10000.01,6.918e-05,2]
[405811582,1771331891832,-10000.01,6.918e-05,2]
[405811583,1771331891957,-10000.01,6.918e-05,2]
[405811584,1771331892077,-10000.01,6.918e-05,2]
[405811585,1771331895807,-10000.01,6.918e-05,2]
[405811586,1771331895983,-10000.01,6.918e-05,2]
[405811587,1771331896117,-10000.01,6.918e-05,2]
[405811588,1771331896259,-10000.01,6.918e-05,2]
[405811589,1771331896392,-10000.01,6.918e-05,2]
[405811590,1771331896996,-10000.01,6.918e-05,2]
[405811591,1771331897096,-10000.01,6.918e-05,2]
[405811592,1771331897252,-10000.01,6.918e-05,2]
[405811593,1771331897385,-10000.01,6.918e-05,2]
[405811594,1771331897468,-10000.01,6.918e-05,2]
[405811595,1771331897646,-10000.01,6.918e-05,2]
[405811596,1771331897767,-10000.01,6.918e-05,2]
[405811597,1771331897879,-10000.01,6.918e-05,2]
[405811599,1771331949895,209.39002865,6.8e-05,3]
[405811600,1771331949940,236.11554155,6.8e-05,3]
[405811601,1771331949998,245.02404585,6.8e-05,3]
[405811602,1771331950058,253.93255015,6.8e-05,3]
[405811604,1771332033470,-182.59,6.8e-05,2]
[405811605,1771332033496,-209.0,6.813e-05,2]
[405811606,1771332033520,-1460.46954007,6.813e-05,2]
[405811607,1771332033548,-1200.0,6.817e-05,2]
[405811608,1771332033573,-10905.31533922,6.818e-05,2]
[405811609,1771332033598,-266.0,6.917e-05,2]
[405811610,1771332033623,-150.0,6.917e-05,2]
[405811611,1771332033650,-518.61505511,6.917e-05,2]
[405811612,1771332033679,-579.25539689,6.917e-05,2]
[405811613,1771332033709,-579.25539689,6.917e-05,2]
[405811614,1771332033738,-579.25539689,6.917e-05,2]
[405811615,1771332033767,-579.25539689,6.917e-05,2]
[405811616,1771332033796,-579.25539689,6.917e-05,2]
[405811617,1771332033825,-579.25539689,6.917e-05,2]
[405811618,1771332033854,-579.25539689,6.917e-05,2]
[405811619,1771332033883,-579.25539689,6.917e-05,2]
[405811620,1771332033912,-579.25539689,6.917e-05,2]
[405811621,1771332033939,-579.25539689,6.917e-05,2]
[405811622,1771332033968,-579.25539689,6.917e-05,2]
[405811623,1771332033996,-579.25539689,6.917e-05,2]
[405811624,1771332034026,-579.25539689,6.917e-05,2]
[405811625,1771332034055,-579.25539689,6.917e-05,2]
[405811626,1771332034084,-579.25539689,6.917e-05,2]
[405811627,1771332034112,-579.25539689,6.917e-05,2]
[405811628,1771332034144,-579.25539689,6.917e-05,2]
[405811629,1771332034172,-579.25539689,6.917e-05,2]
[405811630,1771332034202,-579.25539689,6.917e-05,2]
[405811631,1771332034231,-579.25539689,6.917e-05,2]
[405811632,1771332034261,-579.25539689,6.917e-05,2]
[405811633,1771332034289,-579.25539689,6.917e-05,2]
[405811634,1771332034318,-579.25539689,6.917e-05,2]
[405811635,1771332034347,-579.25539689,6.917e-05,2]
[405811636,1771332034377,-579.25539689,6.917e-05,2]
[405811637,1771332034406,-579.25539689,6.917e-05,2]
[405811638,1771332034436,-579.25539689,6.917e-05,2]
[405811639,1771332034466,-579.25539689,6.917e-05,2]
[405811640,1771332034496,-579.25539689,6.917e-05,2]
[405811641,1771332034526,-579.25539689,6.917e-05,2]
[405811642,1771332034556,-579.25539689,6.917e-05,2]
[405811643,1771332034586,-579.25539689,6.917e-05,2]
[405811644,1771332034615,-579.25539689,6.917e-05,2]
[405811645,1771332034647,-579.25539689,6.917e-05,2]
[405811646,1771332034678,-579.25539689,6.917e-05,2]
[405811647,1771332034709,-579.25539689,6.917e-05,2]
[405811648,1771332034742,-579.25539689,6.917e-05,2]
[405811649,1771332034771,-579.25539689,6.917e-05,2]
[405811650,1771332034800,-579.25539689,6.917e-05,2]
[405811651,1771332034831,-579.25539689,6.917e-05,2]
[405811652,1771332034861,-579.25539689,6.917e-05,2]
[405811653,1771332034892,-579.25539689,6.917e-05,2]
[405811654,1771332034923,-579.25539689,6.917e-05,2]
[405811655,1771332034953,-579.25539689,6.917e-05,2]
[405811656,1771332034983,-579.25539689,6.917e-05,2]
[405811657,1771332035013,-579.25539689,6.917e-05,2]
[405811658,1771332035043,-579.25539689,6.917e-05,2]
[405811659,1771332035072,-579.25539689,6.917e-05,2]
[405811660,1771332035104,-579.25539689,6.917e-05,2]
[405811661,1771332035134,-579.25539689,6.917e-05,2]
[405811662,1771332035164,-579.25539689,6.917e-05,2]
[405811663,1771332035194,-579.25539689,6.917e-05,2]
[405811664,1771332035224,-579.25539689,6.917e-05,2]
[405811665,1771332035254,-579.25539689,6.917e-05,2]
[405811666,1771332035284,-579.25539689,6.917e-05,2]
[405811667,1771332035314,-579.25539689,6.917e-05,2]
[405811668,1771332035343,-579.25539689,6.917e-05,2]
[405811669,1771332035373,-579.25539689,6.917e-05,2]
[405811670,1771332035400,-579.25539689,6.917e-05,2]
[405811671,1771332035429,-579.25539689,6.917e-05,2]
[405811672,1771332035459,-579.25539689,6.917e-05,2]
[405811673,1771332035488,-579.25539689,6.917e-05,2]
[405811674,1771332035517,-579.25539689,6.917e-05,2]
[405811675,1771332035546,-559.94688365,6.917e-05,2]
[405811676,1771332035574,-559.94688365,6.917e-05,2]
[405811677,1771332035842,-559.94688365,6.917e-05,2]
[405811678,1771332035873,-559.94688365,6.917e-05,2]
[405811679,1771332035902,-559.94688365,6.917e-05,2]
[405811680,1771332035932,-559.94688365,6.917e-05,2]
[405811681,1771332035962,-559.94688365,6.917e-05,2]
[405811682,1771332035992,-559.94688365,6.917e-05,2]
[405811683,1771332036021,-559.94688365,6.917e-05,2]
[405811684,1771332036051,-559.94688365,6.917e-05,2]
[405811685,1771332036081,-559.94688365,6.917e-05,2]
[405811686,1771332036112,-559.94688365,6.917e-05,2]
[405811687,1771332036142,-559.94688365,6.917e-05,2]
[405811688,1771332036173,-559.94688365,6.917e-05,2]
[405811689,1771332036202,-559.94688365,6.917e-05,2]
[405811690,1771332036230,-559.94688365,6.917e-05,2]
[405811691,1771332036259,-559.94688365,6.917e-05,2]
[405811692,1771332036288,-559.94688365,6.917e-05,2]
[405811693,1771332036316,-559.94688365,6.917e-05,2]
[405811694,1771332036345,-559.94688365,6.917e-05,2]
[405811695,1771332036373,-559.94688365,6.917e-05,2]
[405811696,1771332036404,-559.94688365,6.917e-05,2]
[405811697,1771332036433,-559.94688365,6.917e-05,2]
[405811698,1771332036463,-559.94688365,6.917e-05,2]
[405811699,1771332036493,-559.94688365,6.917e-05,2]
[405811700,1771332036522,-559.94688365,6.917e-05,2]
[405811701,1771332036549,-33056.30108663,6.918e-05,2]
[405811703,1771332136616,2771.29444943,7.134e-05,3]
[405811704,1771332136680,3113.2024211,8.493e-05,3]
[405811705,1771332136825,3198.67941401,9.172e-05,3]
[405811706,1771332137322,2856.77144235,7.814e-05,3]
[405811707,1771332286408,-99000.0,6.718e-05,2]
[405811708,1771332318318,7608.962164,6.6e-05,3]
[405811709,1771332318356,13203.183787,6.6e-05,3]
[405811710,1771332318399,9473.702705,6.6e-05,3]
[405811711,1771332318445,11338.443246,6.6e-05,3]
[405811712,1771332318501,13203.183787,6.6e-05,3]
[405811714,1771332359968,-10905.31533922,6.618e-05,2]
[405811715,1771332359993,-150.0,6.691e-05,2]
[405811716,1771332360020,-1200.0,6.717e-05,2]
[405811717,1771332360047,-150.0,6.717e-05,2]
[405811718,1771332360073,-429.59095027,6.717e-05,2]
[405811719,1771332360104,-646.75539689,6.717e-05,2]
[405811720,1771332360134,-646.75539689,6.717e-05,2]
[405811721,1771332360170,-646.75539689,6.717e-05,2]
[405811722,1771332360204,-646.75539689,6.717e-05,2]
[405811723,1771332360249,-646.75539689,6.717e-05,2]
[405811724,1771332360278,-646.75539689,6.717e-05,2]
[405811725,1771332360308,-646.75539689,6.717e-05,2]
[405811726,1771332360339,-646.75539689,6.717e-05,2]
[405811727,1771332360368,-646.75539689,6.717e-05,2]
[405811728,1771332360398,-646.75539689,6.717e-05,2]
[405811729,1771332360429,-646.75539689,6.717e-05,2]
[405811730,1771332360458,-646.75539689,6.717e-05,2]
[405811731,1771332360487,-646.75539689,6.717e-05,2]
[405811732,1771332360516,-646.75539689,6.717e-05,2]
[405811733,1771332360544,-646.75539689,6.717e-05,2]
[405811734,1771332360572,-646.75539689,6.717e-05,2]
[405811735,1771332360604,-646.75539689,6.717e-05,2]
[405811736,1771332360633,-646.75539689,6.717e-05,2]
[405811737,1771332360670,-523.49656649,6.717e-05,2]
[405811738,1771332360963,-123.2588304,6.717e-05,2]
[405811739,1771332360991,-646.75539689,6.717e-05,2]
[405811740,1771332361020,-646.75539689,6.717e-05,2]
[405811741,1771332361048,-646.75539689,6.717e-05,2]
[405811742,1771332361076,-646.75539689,6.717e-05,2]
[405811743,1771332361105,-646.75539689,6.717e-05,2]
[405811744,1771332361135,-646.75539689,6.717e-05,2]
[405811745,1771332361163,-646.75539689,6.717e-05,2]